bitfinex/quotes_ETHUSD_20250222
["timestamp","ask_amount","ask_price","bid_price","bid_amount"]
[1740212805014,3.72467,2684.8,2684.5,0.03586947]
[1740212806749,3.72464,2684.9,2684.5,0.03586947]
[1740212807846,3.72463,2684.9,2684.5,0.03586947]
[1740212808062,3.72475,2684.8,2684.5,0.03586947]
[1740212808244,7.4794,2685.0,2684.5,0.03586947]
[1740212808544,3.755,2685.0,2684.6,0.55]
[1740212808746,4.5449,2685.3,2684.7,4.15587095]
[1740212808956,4.5449,2685.3,2684.8,3.98836]
[1740212809336,0.8209,2685.8,2684.9,0.55]
[1740212809646,3.72357,2685.6,2685.1,4.27422]
[1740212809947,3.72357,2685.6,2685.1,0.55]
[1740212810316,3.72357,2685.6,2685.2,0.035499]
[1740212810513,7.44726,2685.6,2685.2,0.035499]
[1740212811051,3.72357,2685.6,2685.2,0.035499]
[1740212811233,3.72385,2685.4,2685.2,0.035499]
[1740212812546,3.72397,2685.3,2685.2,0.035499]
[1740212812937,3.72397,2685.3,2685.0,0.2638]
[1740212813119,3.72397,2685.3,2685.2,0.035499]
[1740212813322,3.72397,2685.3,2685.0,0.2638]
[1740212813528,3.72397,2685.3,2685.2,0.035499]
[1740212813733,3.72397,2685.3,2685.0,0.2638]
[1740212813933,3.72397,2685.3,2685.2,0.035499]
[1740212814147,4.54475,2685.4,2685.0,0.2638]
[1740212814634,4.54475,2685.4,2685.1,0.035499]
[1740212814859,8.26868,2685.4,2685.1,0.035499]
[1740212815170,4.54475,2685.4,2685.1,0.035499]
[1740212815371,8.2687,2685.4,2685.1,0.035499]
[1740212816269,3.72399,2685.3,2685.1,0.035499]
[1740212816447,8.26872,2685.4,2685.1,0.035499]
[1740212816647,8.26872,2685.4,2685.0,0.2638]
[1740212817468,3.72398,2685.3,2685.0,0.2638]
[1740212818576,3.72414,2685.2,2685.0,0.2638]
[1740212818785,3.72414,2685.2,2684.8,0.8138]
[1740212818935,3.72436,2685.1,2684.8,0.8138]
[1740212819355,7.44874,2685.1,2684.8,0.8138]
[1740212819540,7.4487,2685.1,2684.8,0.8138]
[1740212819981,3.72434,2685.1,2684.8,0.8138]
[1740212821060,3.72446,2685.0,2684.8,0.8138]
[1740212821369,3.72476,2684.8,2684.6,0.2638]
[1740212822540,4.5119,2685.0,2684.2,1.4549972]
[1740212822541,0.7874,2685.0,2684.4,0.2638]
[1740212822768,3.72536,2684.3,2684.2,1.4549972]
[1740212822973,3.72544,2684.3,2683.9,0.2638]
[1740212823275,3.72562,2684.2,2683.9,0.2638]
[1740212823469,3.72544,2684.3,2683.9,0.2638]
[1740212823881,3.72508,2684.5,2683.8,1.4549972]
[1740212824179,3.72562,2684.2,2683.8,1.4549972]
[1740212824670,3.72543,2684.3,2683.8,1.4549972]
[1740212824875,7.45139,2684.1,2683.8,1.4549972]
[1740212825070,3.72586,2684.0,2683.6,0.2638]
[1740212825270,3.72586,2684.0,2683.6,0.82816769]
[1740212825671,0.8312,2684.2,2683.4,0.19837972]
[1740212825871,3.72606,2683.8,2683.3,0.2638]
[1740212826082,3.72606,2683.8,2683.4,0.55]
[1740212826783,3.72578,2684.0,2683.4,4.27657]
[1740212827089,3.72578,2684.0,2683.5,0.03487754]
[1740212832379,3.72593,2683.9,2683.5,0.03487754]
[1740212833088,3.72578,2684.0,2683.5,0.03487754]
[1740212833288,3.72592,2683.9,2683.5,0.03487754]
[1740212835004,7.45192,2683.9,2683.5,0.03487754]
[1740212835468,3.72592,2683.9,2683.5,0.03487754]
[1740212837509,7.45191,2683.9,2683.5,0.03487754]
[1740212837893,3.72592,2683.9,2683.5,0.03487754]
[1740212840397,7.45193,2683.9,2683.5,0.03487754]
[1740212840599,3.72592,2683.9,2683.5,0.03487754]
[1740212841511,7.45194,2683.9,2683.5,0.03487754]
[1740212841906,3.72592,2683.9,2683.5,0.03487754]
[1740212844414,3.72633,2683.6,2683.5,0.03487754]
[1740212844781,3.72654,2683.5,2683.2,1.4549972]
[1740212846490,3.72668,2683.4,2683.2,1.4549972]
[1740212846820,3.72668,2683.4,2683.1,0.2638]
[1740212847718,3.72675,2683.3,2682.9,0.8138]
[1740212847885,3.72663,2683.4,2682.9,0.8138]
[1740212848085,3.72676,2683.3,2682.9,0.8138]
[1740212848522,4.47983,2683.4,2682.9,0.8138]
[1740212849891,8.20654,2683.4,2682.9,0.8138]
[1740212850292,3.72696,2683.2,2682.9,0.2638]
[1740212850591,3.72698,2683.2,2682.9,0.2638]
[1740212850786,3.72698,2683.2,2682.7,0.2638]
[1740212853928,3.72698,2683.2,2682.8,0.03678584]
[1740212854304,3.72698,2683.2,2682.7,0.2638]
[1740212854491,3.72698,2683.2,2682.9,0.03678584]
[1740212854693,4.547673,2683.2,2682.7,0.2638]
[1740212854903,3.72705,2683.1,2683.0,0.03678584]
[1740212855092,3.72705,2683.1,2682.7,0.2638]
[1740212855292,3.72705,2683.1,2683.0,0.03678584]
[1740212855609,3.72705,2683.1,2682.7,0.2638]
[1740212856120,3.72705,2683.1,2682.8,0.03678584]
[1740212856295,3.72731,2682.9,2682.8,0.03678584]
[1740212856498,0.7532,2683.0,2682.3,3.72813]
[1740212856499,4.48048,2683.0,2682.3,3.72813]
[1740212856696,0.7532,2683.0,2682.8,0.03547206]
[1740212856916,0.7532,2683.0,2682.6,3.72771]
[1740212857135,0.7532,2683.0,2682.5,4.27779]
[1740212857294,0.7532,2683.0,2682.7,0.03547206]
[1740212857623,0.7532,2683.0,2682.5,5.104752]
[1740212857624,0.7532,2683.0,2682.5,0.55]
[1740212857925,4.48043,2683.0,2682.5,0.55]
[1740212858125,4.48043,2683.0,2682.6,0.03547206]
[1740212860795,0.7532,2683.0,2682.6,0.03547206]
[1740212861028,7.49746,2683.2,2682.7,0.2638]
[1740212861630,7.49746,2683.2,2682.8,0.03547206]
[1740212861926,7.49746,2683.2,2682.7,0.2638]
[1740212862235,7.49746,2683.2,2682.9,0.03614714]
[1740212862392,7.49746,2683.2,2682.7,0.2638]
[1740212862594,4.84946,2683.1,2683.0,0.03614714]
[1740212862799,3.72721,2683.0,2682.5,0.55]
[1740212863021,3.72721,2683.0,2682.4,3.99178]
[1740212863022,0.8158,2682.9,2682.3,3.72811]
[1740212863232,0.8158,2682.9,2682.6,0.03614714]
[1740212863415,0.8158,2682.9,2682.3,3.72811]
[1740212863938,0.8158,2682.9,2682.4,0.03614714]
[1740212864143,3.72759,2682.7,2682.4,0.03614714]
[1740212864340,3.72759,2682.7,2682.2,0.8138]
[1740212864647,0.454301,2682.8,2682.5,0.03678255]
[1740212864842,3.7278,2682.6,2682.2,0.2638]
[1740212865007,3.72786,2682.5,2681.9,3.99363]
[1740212865213,4.54366,2682.5,2682.0,0.2638]
[1740212865520,0.8158,2682.5,2682.0,4.10901101]
[1740212866109,3.72803,2682.4,2682.0,0.11670101]
[1740212866310,3.72816,2682.3,2681.6,3.99282]
[1740212866515,3.72816,2682.3,2681.7,4.393242]
[1740212866927,0.8158,2682.5,2681.9,3.72869]
[1740212867335,3.7281,2682.4,2681.9,0.55]
[1740212867532,3.7281,2682.4,2681.8,0.2638]
[1740212867924,4.54376,2682.5,2681.8,4.54261]
[1740212868244,4.54376,2682.5,2681.8,4.54254]
[1740212868442,0.8158,2682.5,2681.9,0.55]
[1740212868744,0.8158,2682.5,2682.0,3.72853]
[1740212868916,0.8158,2682.5,2682.0,3.72849]
[1740212869952,4.54368,2682.5,2681.9,3.72869]
[1740212870247,5.670815,2682.5,2681.8,4.54259]
[1740212870477,3.72811,2682.4,2681.8,0.2638]
[1740212871026,3.72811,2682.4,2681.8,0.8138]
[1740212871934,3.72823,2682.3,2681.8,0.2638]
[1740212872161,0.8056,2682.2,2681.6,3.99287]
[1740212872333,0.8056,2682.2,2681.9,0.03663917]
[1740212872539,0.8056,2682.2,2681.6,3.99287]
[1740212872540,0.8056,2682.2,2681.6,7.72189]
[1740212872847,0.8056,2682.2,2681.7,3.72896]
[1740212873155,0.8056,2682.4,2681.9,3.72858]
[1740212873568,0.8056,2682.4,2682.0,3.72848]
[1740212873767,0.8056,2682.4,2682.0,0.03663917]
[1740212875357,0.8056,2682.4,2681.8,3.72875]
[1740212875656,0.8056,2682.4,2682.1,0.03663917]
[1740212875960,0.8056,2682.4,2682.2,0.03663917]
[1740212876344,0.8056,2682.4,2682.0,3.72855]
[1740212876546,0.8056,2682.4,2682.3,0.03663917]
[1740212876745,0.8056,2682.4,2682.0,3.72855]
[1740212876950,0.8056,2682.4,2682.3,0.03663917]
[1740212877145,3.57890495,2682.9,2682.4,3.72793]
[1740212877146,0.8056,2682.9,2682.4,3.72793]
[1740212877345,0.3578905,2682.8,2682.4,3.72793]
[1740212877546,0.8056,2682.9,2682.5,3.76475692]
[1740212877747,0.8056,2682.9,2682.6,3.72771]
[1740212877954,0.8056,2682.9,2682.7,3.7275]
[1740212878132,0.8056,2682.9,2682.6,3.72771]
[1740212878332,0.8056,2682.9,2682.8,0.03695692]
[1740212878560,1.93763,2683.1,2682.7,3.7642186]
[1740212878765,1.93763,2683.1,2682.6,3.72772]
[1740212878967,1.93763,2683.1,2682.8,0.0367186]
[1740212879259,1.93763,2683.1,2682.6,3.72772]
[1740212879459,5.66475,2683.1,2682.5,0.2638]
[1740212879673,0.8152,2682.9,2682.3,3.72808]
[1740212879843,0.8152,2682.9,2682.6,0.0367186]
[1740212880039,0.8152,2682.9,2682.4,3.728]
[1740212880465,0.8152,2682.9,2682.5,0.0367186]
[1740212880768,1.269437,2682.9,2682.5,0.0367186]
[1740212881131,4.996767,2682.9,2682.5,0.0367186]
[1740212881531,4.996767,2682.9,2682.3,3.72807]
[1740212881759,1.269437,2682.9,2682.6,0.0367186]
[1740212881958,1.269437,2682.9,2682.5,3.72786]
[1740212882161,1.269437,2682.9,2682.7,0.0367186]
[1740212882162,0.8152,2682.9,2682.7,0.0367186]
[1740212882326,0.8152,2682.9,2682.6,3.72772]
[1740212882531,0.8152,2682.9,2682.8,0.0367186]
[1740212882770,0.8152,2682.9,2682.5,3.72779]
[1740212882967,0.8152,2682.9,2682.8,0.0367186]
[1740212883133,0.8152,2682.9,2682.5,3.72779]
[1740212883639,0.8152,2682.9,2682.6,0.0367186]
[1740212884268,0.8152,2682.9,2682.6,3.7644386]
[1740212884575,0.7858,2683.0,2682.7,3.72757]
[1740212884872,3.57890495,2683.6,2682.7,0.8138]
[1740212884873,0.7858,2683.6,2682.7,0.8138]
[1740212885050,0.7858,2683.1,2682.8,0.0367186]
[1740212885252,4.5129,2683.1,2682.8,0.0367186]
[1740212885436,3.72717,2683.0,2682.6,0.55]
[1740212885636,3.72717,2683.0,2682.9,0.03649356]
[1740212886168,0.7858,2683.1,2682.6,0.55]
[1740212886375,6.72642,2683.6,2682.9,0.03649356]
[1740212886674,4.51222,2683.6,2683.0,3.99088]
[1740212886845,5.636057,2683.6,2683.0,3.99088]
[1740212887040,9.362467,2683.6,2683.1,0.03649356]
[1740212887235,5.636047,2683.6,2683.1,0.03649356]
[1740212888246,3.0,2683.4,2683.1,0.03649356]
[1740212888576,3.72684,2683.3,2683.1,0.03649356]
[1740212888741,3.0,2683.5,2683.1,0.03649356]
[1740212888941,4.5902277,2683.4,2682.9,3.72729]
[1740212889171,0.7858,2683.3,2682.5,3.72777]
[1740212889376,3.72715,2683.1,2682.6,0.2638]
[1740212889548,3.72715,2683.1,2682.6,3.99143]
[1740212889773,3.72715,2683.1,2682.6,4.789852]
[1740212890257,3.72715,2683.1,2682.6,1.062222]
[1740212890465,3.72715,2683.1,2682.7,3.72758]
[1740212890975,4.51257,2683.3,2682.7,3.72758]
[1740212891175,0.8151,2683.5,2683.0,3.72703]
[1740212892271,4.54159,2683.5,2683.0,3.72703]
[1740212892842,0.8151,2683.5,2683.0,3.72703]
[1740212893041,4.5416,2683.5,2683.0,3.72703]
[1740212895457,3.0,2683.4,2682.8,0.2638]
[1740212895665,3.72675,2683.3,2682.8,0.2638]
[1740212896042,3.7269,2683.2,2682.8,0.2638]
[1740212896479,3.0,2683.3,2682.9,3.7273]
[1740212896684,3.72669,2683.4,2682.9,4.18141]
[1740212896982,0.8151,2683.5,2683.0,3.72716]
[1740212897483,3.0,2683.4,2683.0,3.72716]
[1740212898579,3.72628,2683.7,2682.9,0.45411]
[1740212898880,3.0,2683.6,2683.2,0.2638]
[1740212899258,3.0,2683.6,2683.2,3.99067]
[1740212899455,3.0,2683.6,2683.2,3.99061]
[1740212901197,0.7799,2683.7,2683.2,3.99061]
[1740212901362,3.7799,2683.7,2683.3,3.72668]
[1740212901995,3.0,2683.7,2683.3,3.72668]
[1740212902887,3.0,2683.7,2683.5,3.72644]
[1740212903275,3.0,2683.7,2683.4,3.72653]
[1740212903488,3.0,2683.7,2683.5,3.7264]
[1740212904198,0.7799,2683.9,2683.5,3.7264]
[1740212904369,3.72579,2684.0,2683.6,0.2638]
[1740212905405,0.75868556,2683.7,2683.4,3.72653]
[1740212905610,0.75868556,2683.7,2683.4,3.99033]
[1740212906105,6.72598,2683.9,2683.4,3.99033]
[1740212910271,3.0,2683.9,2683.6,3.72633]
[1740212910999,7.55894,2684.1,2683.6,3.72625]
[1740212911376,6.72564,2684.1,2683.7,0.2638]
[1740212911706,4.55846,2684.5,2683.7,0.2638]
[1740212911909,3.72523,2684.4,2683.9,3.72581]
[1740212912685,0.8333,2684.5,2684.0,3.72575]
[1740212912883,8.13701495,2684.7,2684.2,3.72542]
[1740212913499,0.265,2685.1,2684.3,3.72528]
[1740212913500,3.0,2684.6,2684.3,3.72528]
[1740212913910,3.0,2684.6,2684.3,3.72536]
[1740212914295,3.0,2684.7,2684.3,3.72536]
[1740212914800,3.0,2684.7,2684.4,3.72522]
[1740212914999,3.0,2684.7,2684.2,3.72542]
[1740212915215,3.0,2684.7,2684.3,0.398922]
[1740212915412,6.72486,2684.7,2684.3,0.398922]
[1740212915615,7.55794,2684.9,2684.3,0.398922]
[1740212915814,3.8333,2684.9,2684.3,0.398922]
[1740212916111,0.8333,2684.9,2684.6,3.72494]
[1740212916693,0.8333,2684.9,2684.5,0.2638]
[1740212916694,4.5579,2684.9,2684.5,0.2638]
[1740212919406,3.7247,2684.8,2684.5,0.2638]
[1740212920892,3.7247,2684.8,2684.5,1.0243065]
[1740212922926,7.44948,2684.8,2684.5,0.7605065]
[1740212923142,3.72496,2684.6,2684.3,0.2638]
[1740212923345,3.72546,2684.3,2684.1,5.37]
[1740212923517,4.55116,2684.3,2684.1,5.37]
[1740212923819,3.7255,2684.2,2684.1,5.37]
[1740212924116,4.5511,2684.3,2684.1,5.37]
[1740212924915,4.5511,2684.3,2683.9,0.2638]
[1740212925803,4.48981,2684.5,2684.0,3.72577]
[1740212926319,0.7646,2684.5,2684.0,3.72577]
[1740212926630,3.72524,2684.4,2683.9,3.98971]
[1740212926837,3.72524,2684.4,2683.9,4.8011845]
[1740212929535,7.45055,2684.4,2683.9,4.8011845]
[1740212929735,3.72524,2684.4,2683.8,0.55]
[1740212929906,3.72557,2684.2,2683.8,0.55]
[1740212930930,3.72552,2684.2,2683.7,4.388925]
[1740212933588,3.72552,2684.2,2683.8,3.72605]
[1740212935426,3.72537,2684.3,2683.8,3.72605]
[1740212936131,3.72537,2684.3,2683.8,3.72595]
[1740212936290,3.72537,2684.3,2683.8,5.0744495]
[1740212936725,3.7255,2684.2,2683.8,5.0744495]
[1740212938396,3.72537,2684.3,2683.8,5.0744495]
[1740212939029,3.72537,2684.3,2683.8,1.3484995]
[1740212939326,3.72537,2684.3,2683.8,5.0745295]
[1740212940128,3.72558,2684.2,2683.8,1.3484995]
[1740212940321,3.72558,2684.2,2683.7,3.98996]
[1740212940523,4.45609111,2684.2,2683.7,7.71608]
[1740212940828,4.45609111,2684.2,2683.7,7.71603]
[1740212940993,4.45609111,2684.2,2683.7,3.98991]
[1740212941198,8.18170111,2684.2,2683.7,3.98991]
[1740212941431,3.72564,2684.1,2683.7,3.98991]
[1740212941906,4.53274,2684.1,2683.7,0.2638]
[1740212942525,3.7258,2684.0,2683.7,0.2638]
[1740212942739,4.53274,2684.1,2683.7,0.2638]
[1740212943544,3.72584,2684.0,2683.7,0.2638]
[1740212947617,4.53274,2684.1,2683.7,0.2638]
[1740212947817,3.72578,2684.0,2683.7,0.2638]
[1740212947997,0.8071,2684.1,2683.7,3.98986]
[1740212948203,3.72554,2684.2,2683.7,3.98986]
[1740212948827,3.0,2684.3,2683.7,0.2638]
[1740212948998,3.72551,2684.2,2683.7,3.98993]
[1740212949725,7.45112,2684.2,2683.7,3.98993]
[1740212949931,3.72551,2684.2,2683.7,3.98993]
[1740212950129,3.7257,2684.1,2683.7,0.2638]
[1740212950446,3.7257,2684.1,2683.7,3.98993]
[1740212950647,3.7255,2684.2,2683.7,0.2638]
[1740212950958,7.477011,2684.3,2683.7,3.98995]
[1740212950959,3.72566,2684.1,2683.7,3.98995]
[1740212951445,3.72566,2684.1,2683.7,0.2638]
[1740212951830,7.45142,2684.1,2683.7,0.2638]
[1740212952723,3.72578,2684.0,2683.7,0.2638]
[1740212953403,3.72566,2684.1,2683.7,0.2638]
[1740212954049,3.72571,2684.1,2683.7,0.2638]
[1740212954407,3.72578,2684.0,2683.7,0.2638]
[1740212960612,3.72596,2683.9,2683.7,0.2638]
[1740212960810,3.72578,2684.0,2683.7,0.2638]
[1740212962345,0.73893242,2683.9,2683.7,0.2638]
[1740212965917,4.46487242,2683.9,2683.7,0.2638]
[1740212966306,7.45164,2684.0,2683.7,0.2638]
[1740212966513,3.72592,2683.9,2683.7,0.2638]
[1740212966948,7.45166,2684.0,2683.7,0.2638]
[1740212967134,3.72578,2684.0,2683.7,0.2638]
[1740212972056,0.8133,2683.9,2683.4,0.771712]
[1740212972226,3.72614,2683.8,2683.3,3.99045]
[1740212972429,1.735793,2684.1,2683.5,3.72642]
[1740212972633,3.72608,2683.8,2683.4,0.2638]
[1740212973234,7.45176,2684.0,2683.4,3.99034]
[1740212973435,3.72585,2684.0,2683.4,3.99032]
[1740212973622,7.45174,2684.0,2683.5,3.72647]
[1740212973955,3.7258,2684.0,2683.6,0.2638]
[1740212974157,3.72593,2683.9,2683.6,0.2638]
[1740212974342,3.7258,2684.0,2683.6,0.2638]
[1740212976867,0.7331121,2683.8,2683.6,0.2638]
[1740212979135,3.72599,2683.9,2683.6,0.2638]
[1740212979349,3.7258,2684.0,2683.6,0.2638]
[1740212979968,7.45168,2684.0,2683.6,0.2638]
[1740212980168,3.7258,2684.0,2683.6,0.2638]
[1740212980968,3.72593,2683.9,2683.6,0.2638]
[1740212981849,3.72586,2684.0,2683.6,0.2638]
[1740212984145,3.72532,2684.4,2683.9,0.2638]
[1740212984359,3.72509,2684.5,2683.9,0.2638]
[1740212984669,5.461093,2684.4,2683.9,3.98965]
[1740212984871,0.8042,2685.0,2684.2,0.55]
[1740212985072,5.460583,2684.8,2684.2,5.92]
[1740212985367,6.72484,2684.7,2684.2,9.64547]
[1740212985560,3.72484,2684.7,2684.2,5.92]
[1740212985873,1.735793,2684.6,2684.2,5.37]
[1740212986076,3.72509,2684.5,2684.2,5.37]
[1740212990359,3.72509,2684.5,2684.1,1.00441354]
[1740212990656,3.72509,2684.5,2684.1,2.47040155]
[1740212996556,7.45025,2684.5,2684.1,2.47040155]
[1740212996752,3.72509,2684.5,2684.1,2.47040155]
[1740212996957,5.461143,2684.4,2684.1,2.47040155]
[1740212999364,1.735793,2684.4,2684.1,0.2638]
[1740212999597,4.53374,2684.3,2684.0,5.37]
[1740212999962,0.8083,2684.3,2684.0,5.37]
[1740213000174,5.461023,2684.4,2684.0,5.37]
[1740213000368,5.461023,2684.4,2684.0,9.09574]
[1740213000573,1.735793,2684.4,2684.1,5.089177]
[1740213000970,1.735793,2684.6,2684.1,5.089177]
[1740213001173,1.735793,2684.6,2684.3,0.2638]
[1740213001376,3.72497,2684.6,2684.3,0.2638]
[1740213001575,5.460763,2684.6,2684.3,0.2638]
[1740213002500,3.72509,2684.5,2684.3,0.2638]
[1740213002693,3.72509,2684.5,2684.1,0.8138]
[1740213003777,1.735793,2684.6,2684.1,2.177338]
[1740213003980,1.735793,2684.6,2684.2,3.72549]
[1740213004773,4.735793,2684.8,2684.1,1.913538]
[1740213005113,0.8083,2684.9,2684.5,3.72502]
[1740213005404,0.8083,2684.9,2684.4,3.72522]
[1740213005405,4.53284,2684.9,2684.4,3.72522]
[1740213005697,4.53283,2684.9,2684.4,3.72521]
[1740213005867,4.53283,2684.9,2684.4,0.771427]
[1740213006063,0.8083,2684.9,2684.4,0.771427]
[1740213006272,0.8083,2684.9,2684.5,0.2638]
[1740213006473,1.735793,2684.8,2684.5,0.2638]
[1740213012319,5.460533,2684.8,2684.2,4.5393]
[1740213012748,1.735793,2684.6,2684.2,0.8138]
[1740213013035,1.735793,2684.4,2684.1,5.37]
[1740213013326,3.72543,2684.3,2683.9,0.2638]
[1740213013483,3.72543,2684.3,2683.9,1.25477579]
[1740213013711,1.735793,2684.2,2683.9,1.25477579]
[1740213014271,5.461343,2684.2,2683.6,0.73928289]
[1740213014411,1.735793,2684.0,2683.6,0.73928289]
[1740213014759,0.8111,2684.1,2683.7,3.72612]
[1740213015259,0.8111,2684.1,2683.7,4.005602]
[1740213015460,0.8111,2684.1,2683.8,3.72599]
[1740213015624,0.8111,2684.1,2683.9,4.4990592]
[1740213015827,2.546893,2684.4,2683.9,4.4990592]
[1740213016172,2.546893,2684.4,2684.0,3.72577]
[1740213016461,2.546893,2684.4,2684.1,3.72562]
[1740213017261,2.546893,2684.4,2684.1,3.72557]
[1740213017520,5.460883,2684.5,2684.1,0.84883992]
[1740213017671,1.735793,2684.3,2684.0,0.2638]
[1740213018573,1.735793,2684.3,2684.0,3.98957]
[1740213018782,1.735793,2684.3,2684.0,0.2638]
[1740213018978,1.735793,2684.5,2684.1,3.72561]
[1740213019367,1.735793,2684.5,2684.2,3.7255]
[1740213019939,1.735793,2684.5,2684.1,3.72561]
[1740213020580,1.735793,2684.5,2684.1,4.497133]
[1740213020786,1.735793,2684.5,2684.2,3.7255]
[1740213021082,0.8187,2684.8,2684.2,0.8138]
[1740213021283,0.8187,2684.8,2684.2,6.1838]
[1740213021483,1.735793,2684.9,2684.3,3.72536]
[1740213021690,4.735793,2684.9,2684.4,3.72522]
[1740213021976,4.735793,2684.9,2684.5,3.72501]
[1740213022555,3.0,2684.9,2684.5,3.72501]
[1740213023539,0.8187,2685.4,2685.0,3.72437]
[1740213023755,0.8187,2685.4,2684.7,0.2638]
[1740213023993,3.98791,2686.1,2684.6,0.55]
[1740213023994,0.8187,2685.9,2685.2,0.2638]
[1740213024299,7.39660261,2685.9,2685.2,9.35786]
[1740213024459,3.72331,2685.8,2685.2,9.09406]
[1740213024792,8.50856487,2685.9,2685.2,9.09406]
[1740213024793,7.39660261,2685.9,2685.5,3.72358]
[1740213025034,7.39660261,2685.9,2685.4,3.72378]
[1740213026397,11.11974261,2685.9,2685.2,9.09405]
[1740213026698,11.11974261,2685.9,2685.2,13.808855]
[1740213026883,3.72338,2685.8,2685.2,10.084805]
[1740213027246,3.72338,2685.8,2685.2,13.808835]
[1740213027560,3.72338,2685.8,2685.2,10.084805]
[1740213027760,3.72338,2685.8,2685.3,3.72397]
[1740213027956,3.72338,2685.8,2685.3,5.1048475]
[1740213028162,3.72342,2685.7,2685.3,1.3808775]
[1740213028478,3.72343,2685.7,2685.3,1.3808775]
[1740213029358,3.72337,2685.8,2685.3,1.3808775]
[1740213029679,3.72337,2685.8,2685.3,5.1048275]
[1740213030282,3.72337,2685.8,2685.3,1.3808775]
[1740213030466,3.72359,2685.6,2685.3,1.3808775]
[1740213030672,3.72391,2685.4,2685.2,5.37]
[1740213030869,0.7774,2685.5,2685.2,5.37]
[1740213031075,3.57790261,2685.6,2685.3,4.633384]
[1740213031254,0.7774,2685.7,2685.3,4.633384]
[1740213031652,3.0,2685.8,2685.4,3.72376]
[1740213033641,3.0,2685.7,2685.2,5.6338]
[1740213033838,3.72356,2685.6,2685.2,5.6338]
[1740213034328,4.50122,2685.5,2685.2,5.37]
[1740213034478,3.72385,2685.4,2685.2,5.37]
[1740213034884,3.72385,2685.4,2684.9,3.72446]
[1740213035621,7.44777,2685.4,2684.9,3.72446]
[1740213036113,3.72411,2685.3,2684.8,0.2638]
[1740213036296,3.72405,2685.3,2684.7,12.8195]
[1740213036499,3.72414,2685.2,2684.8,1.93114517]
[1740213036738,3.72398,2685.3,2684.8,5.65577517]
[1740213037089,3.72411,2685.2,2684.8,5.65577517]
[1740213037290,3.72411,2685.2,2684.8,1.93114517]
[1740213038446,3.72411,2685.2,2684.8,1.38114517]
[1740213038613,4.50173,2685.1,2684.7,5.37]
[1740213041270,3.72447,2685.0,2684.7,5.37]
[1740213041476,3.72467,2684.8,2684.7,5.37]
[1740213041777,3.72464,2684.9,2684.7,5.37]
[1740213042524,3.72467,2684.8,2684.7,5.37]
[1740213044135,4.55717,2684.8,2684.7,5.37]
[1740213045357,4.55717,2684.8,2684.1,0.55]
[1740213045358,2.01847126,2684.8,2684.1,0.8138]
[1740213045539,3.72495,2684.6,2684.1,4.53936]
[1740213048335,3.7249,2684.7,2684.1,4.53936]
[1740213049228,3.7249,2684.7,2684.2,3.72549]
[1740213051961,0.8325,2684.8,2684.4,3.72519]
[1740213052324,0.8325,2684.8,2684.3,3.7253]
[1740213052558,4.55717,2684.8,2684.3,4.551769]
[1740213052767,0.8325,2684.8,2684.3,4.551769]
[1740213053475,3.72453,2684.9,2684.4,0.2638]
[1740213053680,3.72453,2684.9,2684.4,3.98899]
[1740213053880,8.09729261,2685.0,2684.4,3.98899]
[1740213054082,0.795,2685.0,2684.4,3.98899]
[1740213054369,3.795,2685.0,2684.5,3.72499]
[1740213054525,7.51942,2685.0,2684.5,3.72499]
[1740213055331,7.51942,2685.0,2684.4,3.98902]
[1740213055662,3.72461,2684.9,2684.4,0.2638]
[1740213056367,7.44927,2684.9,2684.4,0.2638]
[1740213056568,3.72461,2684.9,2684.4,0.2638]
[1740213057554,3.72461,2684.9,2684.4,3.98901]
[1740213060272,0.795,2685.0,2684.5,3.72495]
[1740213060473,0.795,2685.0,2684.5,0.05214686]
[1740213060671,0.795,2685.0,2684.6,3.72487]
[1740213060875,4.5194,2685.0,2684.5,0.55]
[1740213061166,4.5194,2685.0,2684.6,0.826407]
[1740213061385,0.795,2685.0,2684.5,4.27507]
[1740213062239,0.795,2685.0,2684.6,3.72494]
[1740213063572,3.7534,2685.2,2684.6,3.72494]
[1740213063772,0.7534,2685.2,2684.8,3.72462]
[1740213065060,0.7534,2685.2,2684.7,3.72481]
[1740213066280,0.7534,2685.2,2684.8,3.72466]
[1740213066980,0.7534,2685.2,2684.7,4.524795]
[1740213067883,0.7534,2685.2,2684.7,8.249515]
[1740213068083,0.7534,2685.2,2684.9,3.72451]
[1740213069063,0.7534,2685.2,2684.8,0.2638]
[1740213069269,0.7534,2685.2,2684.9,0.39885]
[1740213070374,4.47755,2685.2,2684.7,3.7247]
[1740213070600,4.47755,2685.2,2684.6,3.98873]
[1740213070802,3.72427,2685.1,2684.6,3.72493]
[1740213070985,3.72427,2685.1,2684.6,4.496302]
[1740213072704,3.72427,2685.1,2684.6,0.771372]
[1740213072998,4.47381897,2685.3,2684.4,0.2638]
[1740213072999,0.7534,2684.8,2684.4,0.2638]
[1740213073204,0.7534,2684.8,2684.3,3.72536]
[1740213075372,4.47807,2684.8,2684.3,3.72536]
[1740213076108,0.7534,2684.8,2684.3,3.72536]
[1740213076257,3.7249,2684.7,2684.2,5.37]
[1740213076573,0.7534,2684.6,2684.2,1.390004]
[1740213077553,0.7534,2684.6,2684.2,3.72548]
[1740213077757,0.7534,2684.6,2684.2,3.77763126]
[1740213077980,0.7534,2684.6,2684.4,3.72509]
[1740213078170,0.7671,2685.0,2684.5,3.72508]
[1740213078369,3.7671,2685.0,2684.5,3.72498]
[1740213078800,3.7671,2685.0,2684.6,3.72483]
[1740213079501,0.7671,2685.0,2684.7,3.72468]